fUST/lending_fUST_20250117
["ID","MTS","AMOUNT","RATE_DAILY","PERIOD"]
[349298339,1737106243676,-843.61878058,0.000219,3]
[349298341,1737106243685,-154.34,0.00021917,2]
[349298343,1737106243695,-35272.88223128,0.00021917,5]
[349298345,1737106243711,-16579.21550513,0.00021917,5]
[349298347,1737106243720,-10130.44242984,0.00021917,5]
[349298349,1737106243730,-498.21415296,0.00021917,3]
[349298351,1737106243743,-501.17481239,0.00021917,3]
[349298353,1737106243758,-501.88455293,0.00021917,3]
[349298355,1737106243768,-505.74007466,0.00021917,3]
[349298357,1737106243779,-500.0,0.00021917,3]
[349298359,1737106243792,-497.34361056,0.00021917,3]
[349298361,1737106243801,-180.96586757,0.00021917,3]
[349298363,1737106243812,-523.10112318,0.00021917,3]
[349298365,1737106243825,-500.0,0.00021917,3]
[349298367,1737106243835,-502.14253736,0.00021917,3]
[349298369,1737106243845,-501.64334652,0.00021917,2]
[349298371,1737106243855,-500.0,0.00021917,3]
[349298373,1737106243864,-486.44250239,0.00021917,3]
[349298375,1737106243874,-500.0,0.00021917,3]
[349298377,1737106243885,-500.0,0.00021917,3]
[349298379,1737106243895,-500.0,0.00021917,3]
[349298381,1737106243904,-500.0,0.00021917,3]
[349298383,1737106243915,-506.45,0.00021917,3]
[349298385,1737106243925,-500.0,0.00021917,3]
[349298388,1737106243935,-441.06880133,0.00021917,3]
[349298390,1737106243945,-500.0,0.00021917,3]
[349298392,1737106243954,-500.0,0.00021917,3]
[349298394,1737106243965,-500.0,0.00021917,3]
[349298396,1737106243979,-500.0,0.00021917,3]
[349298398,1737106243990,-500.0,0.00021917,3]
[349298400,1737106244000,-500.0,0.00021917,3]
[349298402,1737106244010,-500.0,0.00021917,3]
[349298404,1737106244019,-506.36415228,0.00021917,3]
[349298406,1737106244028,-542.94,0.00021917,3]
[349298408,1737106244038,-500.0,0.00021917,3]
[349298410,1737106244048,-649.67537797,0.00021917,3]
[349298412,1737106244057,-500.0,0.00021917,3]
[349298414,1737106244070,-500.0,0.00021917,3]
[349298416,1737106244079,-564.77309606,0.00021917,3]
[349298418,1737106244088,-500.0,0.00021917,3]
[349298420,1737106244098,-500.0,0.00021917,3]
[349298422,1737106244108,-500.0,0.00021917,3]
[349298424,1737106244117,-616.65,0.00021917,3]
[349298426,1737106244127,-502.90602669,0.00021917,3]
[349298428,1737106244137,-500.0,0.00021917,3]
[349298430,1737106244146,-500.0,0.00021917,3]
[349298432,1737106244156,-511.21108364,0.00021917,3]
[349298434,1737106244165,-500.0,0.00021917,3]
[349298436,1737106244175,-500.0,0.00021917,3]
[349298438,1737106244185,-604.21930579,0.00021917,3]
[349298440,1737106244198,-500.0,0.00021917,3]
[349298442,1737106244208,-500.0,0.00021917,3]
[349298444,1737106244219,-500.0,0.00021917,3]
[349298446,1737106244228,-269.82180472,0.00021917,3]
[349298448,1737106244237,-500.0,0.00021917,3]
[349298450,1737106244247,-343.98190041,0.00021917,3]
[349298452,1737106244256,-506.66327145,0.00021917,3]
[349298454,1737106244265,-500.0,0.00021917,3]
[349298456,1737106244274,-500.0,0.00021917,3]
[349298458,1737106244283,-500.0,0.00021917,3]
[349298460,1737106244292,-500.0,0.00021917,3]
[349298462,1737106244301,-500.0,0.00021917,3]
[349298464,1737106244311,-161.14374168,0.00021917,3]
[349298466,1737106244320,-500.0,0.00021917,3]
[349298468,1737106244329,-500.0,0.00021917,3]
[349298470,1737106244339,-500.0,0.00021917,3]
[349298472,1737106244348,-500.0,0.00021917,3]
[349298474,1737106244357,-500.0,0.00021917,3]
[349298476,1737106244366,-500.0,0.00021917,3]
[349298478,1737106244375,-500.0,0.00021917,3]
[349298480,1737106244385,-500.0,0.00021917,3]
[349298482,1737106244394,-500.0,0.00021917,3]
[349298484,1737106244403,-500.0,0.00021917,3]
[349298486,1737106244412,-500.0,0.00021917,3]
[349298487,1737106244422,-500.0,0.00021917,3]
[349298488,1737106244432,-500.0,0.00021917,3]
[349298490,1737106244441,-500.0,0.00021917,3]
[349298492,1737106244450,-500.0,0.00021917,3]
[349298494,1737106244460,-500.0,0.00021917,3]
[349298496,1737106244469,-500.0,0.00021917,3]
[349298498,1737106244478,-500.0,0.00021917,3]
[349298500,1737106244488,-512.59353784,0.00021917,3]
[349298502,1737106244497,-500.0,0.00021917,3]
[349298504,1737106244506,-500.0,0.00021917,3]
[349298506,1737106244515,-500.0,0.00021917,3]
[349298508,1737106244525,-500.0,0.00021917,3]
[349298510,1737106244534,-500.0,0.00021917,3]
[349298512,1737106244543,-500.0,0.00021917,3]
[349298514,1737106244552,-500.0,0.00021917,3]
[349298516,1737106244561,-500.0,0.00021917,3]
[349298518,1737106244570,-500.0,0.00021917,3]
[349298520,1737106244579,-500.0,0.00021917,3]
[349298522,1737106244588,-500.0,0.00021917,3]
[349298524,1737106244597,-500.0,0.00021917,3]
[349298526,1737106244606,-500.0,0.00021917,3]
[349298528,1737106244615,-500.0,0.00021917,3]
[349298530,1737106244624,-228.8299208,0.00021917,3]
[349298532,1737106244635,-500.0,0.00021917,3]
[349298534,1737106244644,-500.0,0.00021917,3]
[349298536,1737106244653,-500.0,0.00021917,3]
[349298538,1737106244663,-500.0,0.00021917,3]
[349298540,1737106244672,-500.0,0.00021917,3]
[349298542,1737106244682,-500.0,0.00021917,3]
[349298544,1737106244691,-500.0,0.00021917,3]
[349298546,1737106244701,-500.0,0.00021917,3]
[349298548,1737106244710,-500.0,0.00021917,3]
[349298550,1737106244719,-500.0,0.00021917,3]
[349298552,1737106244729,-501.24168768,0.00021917,3]
[349298554,1737106244739,-503.21755625,0.00021917,3]
[349298556,1737106244750,-500.0,0.00021917,3]
[349298558,1737106244759,-500.0,0.00021917,3]
[349298560,1737106244768,-500.0,0.00021917,3]
[349298562,1737106244778,-500.0,0.00021917,3]
[349298564,1737106244788,-516.82299581,0.00021917,3]
[349298566,1737106244797,-500.0,0.00021917,3]
[349298568,1737106244806,-500.0,0.00021917,3]
[349298570,1737106244817,-500.0,0.00021917,3]
[349298572,1737106244826,-500.0,0.00021917,3]
[349298574,1737106244836,-500.0,0.00021917,3]
[349298576,1737106244845,-500.0,0.00021917,3]
[349298578,1737106244855,-500.0,0.00021917,3]
[349298580,1737106244864,-500.0,0.00021917,3]
[349298582,1737106244873,-500.0,0.00021917,3]
[349298584,1737106244883,-500.0,0.00021917,3]
[349298586,1737106244893,-500.0,0.00021917,3]
[349298588,1737106244902,-500.0,0.00021917,3]
[349298590,1737106244912,-500.0,0.00021917,3]
[349298592,1737106244923,-544.17,0.00021917,3]
[349298593,1737106244931,-500.0,0.00021917,3]
[349298594,1737106244941,-500.0,0.00021917,3]
[349298595,1737106244950,-502.51615048,0.00021917,3]
[349298596,1737106244960,-500.0,0.00021917,3]
[349298598,1737106244969,-500.0,0.00021917,3]
[349298600,1737106244978,-500.0,0.00021917,3]
[349298602,1737106244987,-500.0,0.00021917,3]
[349298604,1737106244996,-626.93,0.00021917,3]
[349298606,1737106245006,-500.0,0.00021917,3]
[349298608,1737106245015,-500.0,0.00021917,3]
[349298610,1737106245024,-500.0,0.00021917,3]
[349298612,1737106245033,-509.35,0.00021917,3]
[349298614,1737106245043,-500.0,0.00021917,3]
[349298616,1737106245052,-500.0,0.00021917,3]
[349298618,1737106245062,-500.0,0.00021917,3]
[349298620,1737106245070,-553.28,0.00021917,3]
[349298622,1737106245080,-500.0,0.00021917,3]
[349298624,1737106245089,-500.0,0.00021917,3]
[349298626,1737106245099,-500.0,0.00021917,3]
[349298628,1737106245108,-500.0,0.00021917,3]
[349298630,1737106245117,-227.21892102,0.00021917,3]
[349298632,1737106245127,-504.61227403,0.00021917,3]
[349298634,1737106245136,-480.16994304,0.00021917,3]
[349298636,1737106245145,-516.60465805,0.00021917,3]
[349298638,1737106245155,-500.0,0.00021917,3]
[349298640,1737106245164,-420.67907704,0.00021917,3]
[349298642,1737106245174,-500.0,0.00021917,3]
[349298644,1737106245184,-500.0,0.00021917,3]
[349298646,1737106245193,-500.0,0.00021917,3]
[349298648,1737106245203,-500.0,0.00021917,3]
[349298650,1737106245213,-2141.4,0.00021917,3]
[349298652,1737106245223,-500.0,0.00021917,3]
[349298654,1737106245232,-308.43573768,0.00021917,3]
[349298657,1737106245242,-500.0,0.00021917,3]
[349298659,1737106245251,-488.76015863,0.00021917,3]
[349298661,1737106245260,-500.0,0.00021917,3]
[349298663,1737106245270,-500.0,0.00021917,3]
[349298665,1737106245279,-508.23381555,0.00021917,3]
[349298666,1737106245289,-500.0,0.00021917,2]
[349298668,1737106245299,-212.74306232,0.00021917,3]
[349298671,1737106245309,-502.43486828,0.00021917,3]
[349298672,1737106245319,-505.2758998,0.00021917,3]
[349298675,1737106245329,-581.28853705,0.00021917,3]
[349298677,1737106245338,-500.0,0.00021917,3]
[349298678,1737106245348,-521.13,0.00021917,3]
[349298681,1737106245358,-500.0,0.00021917,3]
[349298683,1737106245368,-500.0,0.00021917,3]
[349298685,1737106245378,-5299.9,0.00021917,3]
[349298687,1737106245388,-500.0,0.00021917,3]
[349298689,1737106245397,-500.0,0.00021917,3]
[349298691,1737106245408,-460.62405417,0.00021917,3]
[349298693,1737106245418,-493.56368146,0.00021917,3]
[349298695,1737106245428,-500.0,0.00021917,3]
[349298697,1737106245439,-335.93607242,0.00021917,3]
[349298699,1737106245449,-188.65461865,0.00021917,2]
[349298701,1737106245459,-500.0,0.00021917,3]
[349298703,1737106245470,-500.0,0.00021917,3]
[349298705,1737106245479,-500.0,0.00021917,3]
[349298707,1737106245489,-3700.17,0.00021917,3]
[349298709,1737106245499,-505.30615498,0.00021917,3]
[349298711,1737106245509,-500.0,0.00021917,3]
[349298713,1737106245519,-389.10150388,0.00021917,3]
[349298715,1737106245528,-499.0,0.00021917,2]
[349298717,1737106245537,-500.0,0.00021917,3]
[349298719,1737106245546,-507.83435054,0.00021917,3]
[349298721,1737106245556,-500.0,0.00021917,3]
[349298723,1737106245565,-500.0,0.00021917,3]
[349298725,1737106245575,-500.0,0.00021917,3]
[349298727,1737106245584,-500.0,0.00021917,3]
[349298729,1737106245593,-509.08,0.00021917,3]
[349298731,1737106245603,-500.0,0.00021917,3]
[349298734,1737106245612,-500.0,0.00021917,3]
[349298736,1737106245621,-3424.55,0.00021917,3]
[349298738,1737106245631,-500.0,0.00021917,3]
[349298740,1737106245641,-500.0,0.00021917,3]
[349298742,1737106245650,-500.0,0.00021917,3]
[349298744,1737106245659,-503.25669096,0.00021917,3]
[349298746,1737106245668,-500.0,0.00021917,3]
[349298748,1737106245678,-457.05603816,0.00021917,3]
[349298761,1737106245800,-500.0,0.00021917,3]
[349298763,1737106245811,-500.0,0.00021917,3]
[349298765,1737106245823,-500.0,0.00021917,3]
[349298767,1737106245832,-500.0,0.00021917,3]
[349298769,1737106245842,-535.96467722,0.00021917,3]
[349298773,1737106245852,-500.0,0.00021917,3]
[349298775,1737106245861,-500.0,0.00021917,3]
[349298779,1737106245870,-501.46751487,0.00021917,3]
[349298780,1737106245881,-511.08,0.00021917,3]
[349298783,1737106245890,-500.0,0.00021917,3]
[349298785,1737106245899,-500.0,0.00021917,3]
[349298786,1737106245908,-878.84,0.00021917,3]
[349298788,1737106245918,-500.0,0.00021917,3]
[349298790,1737106245927,-500.0,0.00021917,3]
[349298793,1737106245936,-500.0,0.00021917,3]
[349298795,1737106245945,-574.21,0.00021917,3]
[349298797,1737106245954,-500.0,0.00021917,3]
[349298800,1737106245964,-500.0,0.00021917,3]
[349298802,1737106245974,-500.0,0.00021917,3]
[349298804,1737106245983,-501.29612347,0.00021917,2]
[349298806,1737106245992,-500.0,0.00021917,3]
[349298808,1737106246001,-500.0,0.00021917,3]
[349298809,1737106246010,-500.0,0.00021917,3]
[349298812,1737106246020,-560.37,0.00021917,3]
[349298813,1737106246029,-399.70999054,0.00021917,7]
[349298815,1737106246039,-1789.54,0.00021917,3]
[349298817,1737106246048,-500.0,0.00021917,3]
[349298819,1737106246057,-506.8613934,0.00021917,3]
[349298821,1737106246067,-1544.3,0.00021917,3]
[349298823,1737106246076,-500.0,0.00021917,3]
[349298825,1737106246085,-301.6748884,0.00021917,3]
[349298828,1737106246100,-198.3251116,0.00021917,3]
[349298830,1737106246110,-500.0,0.00021917,3]
[349298832,1737106246119,-500.0,0.00021917,3]
[349298834,1737106246130,-500.0,0.00021917,3]
[349298836,1737106246140,-500.0,0.00021917,3]
[349298838,1737106246149,-490.08645015,0.00021917,3]
[349298840,1737106246158,-500.0,0.00021917,3]
[349298841,1737106246167,-500.0,0.00021917,3]
[349298843,1737106246177,-502.34799578,0.00021917,3]
[349298845,1737106246186,-500.0,0.00021917,3]
[349298847,1737106246197,-500.0,0.00021917,3]
[349298849,1737106246206,-500.0,0.00021917,2]
[349298851,1737106246215,-500.0,0.00021917,3]
[349298853,1737106246225,-503.51070332,0.00021917,3]
[349298855,1737106246234,-891.3,0.00021917,3]
[349298857,1737106246244,-627.92,0.00021917,3]
[349298859,1737106246254,-500.0,0.00021917,3]
[349298861,1737106246263,-500.0,0.00021917,3]
[349298863,1737106246273,-6352.39,0.00021917,3]
[349298865,1737106246283,-843.61878047,0.00021969,3]
[349298867,1737106246292,-1000.0,0.00022,22]
[349298869,1737106246302,-843.61878047,0.00022038,3]
[349298871,1737106246312,-500.0,0.00022047,2]
[349298873,1737106246322,-505.23914993,0.00022054,3]
[349298875,1737106246331,-219.50891512,0.00022054,3]
[349298877,1737106246341,-480.29020001,0.00022054,3]
[349298879,1737106246351,-500.0,0.00022054,3]
[349298881,1737106246360,-500.0,0.00022054,3]
[349298883,1737106246369,-500.0,0.00022054,3]
[349298885,1737106246380,-542.94,0.00022054,3]
[349298887,1737106246389,-520.54600499,0.00022054,3]
[349298889,1737106246399,-500.0,0.00022054,3]
[349298891,1737106246409,-500.0,0.00022054,3]
[349298893,1737106246418,-500.0,0.00022054,3]
[349298895,1737106246428,-500.0,0.00022054,3]
[349298897,1737106246437,-326.87,0.00022054,3]
[349298899,1737106246446,-500.0,0.00022054,3]
[349298901,1737106246455,-500.0,0.00022054,3]
[349298903,1737106246465,-457.04,0.00022054,3]
[349298905,1737106246475,-500.0,0.00022054,3]
[349298907,1737106246486,-456.91,0.00022054,3]
[349298909,1737106246496,-346.3,0.00022054,3]
[349298911,1737106246505,-500.0,0.00022054,3]
[349298913,1737106246514,-605.01,0.00022054,3]
[349298915,1737106246524,-500.0,0.00022054,3]
[349298917,1737106246533,-503.14773963,0.00022054,3]
[349298919,1737106246542,-1622.7563655,0.00022054,3]
[349298943,1737106246775,-518.6436345,0.00022054,3]
[349298945,1737106246787,-519.14299683,0.00022054,3]
[349298947,1737106246796,-342.50015474,0.00022054,2]
[349300942,1737106326940,203.049879,0.00013973,2]
[349300946,1737107224864,200.979887,0.00013973,2]
[349300961,1737107398060,163.82677567,0.00013,2]
[349300991,1737107432763,-1295.16890613,0.000189,2]
[349300992,1737107432773,-459.69572676,0.00019755,2]
[349300993,1737107432783,-500.0,0.00019855,2]
[349300994,1737107432793,-200.979887,0.00020447,2]
[349300995,1737107432802,-1122.543,0.0002118,2]
[349300996,1737107432812,-905.71,0.000218,2]
[349300997,1737107432822,-256.833087,0.00021833,2]
[349300998,1737107432833,-180.608,0.00021833,2]
[349300999,1737107432843,-154.35,0.00021917,2]
[349301000,1737107432855,-500.0,0.00021917,3]
[349301001,1737107432864,-500.0,0.00021917,3]
[349301002,1737107432874,-151.144195,0.00021917,2]
[349301003,1737107432883,-500.0,0.00021917,3]
[349301004,1737107432893,-500.0,0.00021917,3]
[349301005,1737107432903,-500.0,0.00021917,3]
[349301006,1737107432912,-500.0,0.00021917,3]
[349301007,1737107432922,-500.0,0.00021917,3]
[349301008,1737107432931,-500.0,0.00021917,3]
[349301009,1737107432940,-500.0,0.00021917,3]
[349301010,1737107432950,-500.0,0.00021917,3]
[349301011,1737107432959,-501.25459243,0.00021917,3]
[349301012,1737107432970,-359.11847634,0.00021917,3]
[349301013,1737107432979,-500.0,0.00021917,3]
[349301014,1737107432988,-500.0,0.00021917,3]
[349301015,1737107432998,-500.0,0.00021917,3]
[349301016,1737107433009,-500.0,0.00021917,3]
[349301017,1737107433018,-500.0,0.00021917,3]
[349301018,1737107433027,-500.0,0.00021917,3]
[349301019,1737107433037,-500.0,0.00021917,3]
[349301020,1737107433047,-500.0,0.00021917,3]
[349301021,1737107433057,-500.0,0.00021917,3]
[349301022,1737107433067,-500.0,0.00021917,3]
[349301023,1737107433077,-500.0,0.00021917,3]
[349301024,1737107433087,-500.0,0.00021917,3]
[349301025,1737107433099,-500.0,0.00021917,3]
[349301026,1737107433113,-500.0,0.00021917,3]
[349301027,1737107433124,-500.0,0.00021917,3]
[349301028,1737107433133,-511.9003584,0.00021917,3]
[349301029,1737107433143,-506.16591319,0.00021917,3]
[349301030,1737107433152,-500.0,0.00021917,3]
[349301031,1737107433162,-500.0,0.00021917,3]
[349301032,1737107433171,-500.0,0.00021917,3]
[349301033,1737107433183,-504.59975328,0.00021917,3]
[349301034,1737107433193,-500.0,0.00021917,3]
[349301035,1737107433202,-508.2531757,0.00021917,3]
[349301036,1737107433213,-500.0,0.00021917,3]
[349301037,1737107433222,-500.0,0.00021917,3]
[349301038,1737107433231,-500.0,0.00021917,3]
[349301039,1737107433241,-500.0,0.00021917,3]
[349301040,1737107433251,-500.0,0.00021917,3]
[349301041,1737107433261,-500.0,0.00021917,3]
[349301042,1737107433271,-516.230236,0.00021917,3]
[349301043,1737107433280,-500.0,0.00021917,3]
[349301044,1737107433290,-503.03174827,0.00021917,3]
[349301045,1737107433300,-500.0,0.00021917,3]
[349301046,1737107433309,-500.0,0.00021917,3]
[349301047,1737107433319,-500.0,0.00021917,3]
[349301048,1737107433329,-500.0,0.00021917,3]
[349301049,1737107433339,-500.0,0.00021917,3]
[349301050,1737107433349,-500.0,0.00021917,3]
[349301051,1737107433359,-426.4129445,0.00021917,3]
[349301052,1737107433373,-73.5870555,0.00021917,3]
[349301053,1737107433382,-500.0,0.00021917,3]
[349301054,1737107433392,-390.2629445,0.00021917,3]
[349301294,1737107440807,-395.0,0.0002118,2]
[349301296,1737107440817,-20.39855116,0.00021917,3]
[349301298,1737107440829,-89.33850434,0.00021917,3]
[349301300,1737107440838,-184.15546401,0.00021917,3]
[349301302,1737107440847,-500.0,0.00021917,3]
[349301304,1737107440857,-349.04929808,0.00021917,3]
[349301557,1737107443618,-150.95070192,0.00021917,3]
[349301559,1737107443628,-500.0,0.00021917,3]
[349301561,1737107443639,-500.0,0.00021917,3]
[349301563,1737107443649,-500.0,0.00021917,3]
[349301565,1737107443659,-500.0,0.00021917,3]
[349301567,1737107443669,-500.0,0.00021917,3]
[349301569,1737107443678,-500.0,0.00021917,3]
[349301571,1737107443688,-500.0,0.00021917,3]
[349301572,1737107443698,-507.08524369,0.00021917,3]
[349301574,1737107443707,-500.0,0.00021917,3]
[349301576,1737107443718,-500.0,0.00021917,3]
[349301578,1737107443729,-500.0,0.00021917,3]
[349301580,1737107443738,-500.0,0.00021917,3]
[349301582,1737107443747,-500.0,0.00021917,3]
[349301584,1737107443757,-500.0,0.00021917,3]
[349301586,1737107443767,-191.56426232,0.00021917,3]
[349301588,1737107443778,-500.0,0.00021917,3]
[349301590,1737107443788,-500.0,0.00021917,3]
[349301592,1737107443797,-522.69,0.00021917,3]
[349301594,1737107443807,-500.0,0.00021917,3]
[349301596,1737107443816,-500.0,0.00021917,3]
[349301598,1737107443826,-500.0,0.00021917,3]
[349301599,1737107443835,-561.5037145,0.00021917,3]
[349301601,1737107443845,-500.0,0.00021917,3]
[349301603,1737107443854,-500.0,0.00021917,3]
[349301605,1737107443863,-500.0,0.00021917,3]
[349301607,1737107443872,-500.0,0.00021917,3]
[349301609,1737107443882,-500.0,0.00021917,3]
[349301611,1737107443891,-500.0,0.00021917,3]
[349301613,1737107443900,-500.0,0.00021917,3]
[349301615,1737107443910,-500.0,0.00021917,3]
[349301617,1737107443920,-500.0,0.00021917,3]
[349301618,1737107443929,-500.0,0.00021917,3]
[349301620,1737107443939,-500.0,0.00021917,3]
[349301622,1737107443949,-500.0,0.00021917,3]
[349301624,1737107443959,-500.0,0.00021917,3]
[349301626,1737107443968,-500.0,0.00021917,3]
[349301628,1737107443979,-500.0,0.00021917,3]
[349301640,1737107444107,-500.0,0.00021917,3]
[349301642,1737107444118,-500.0,0.00021917,3]
[349301645,1737107444127,-1714.98,0.00021917,3]
[349301648,1737107444137,-500.0,0.00021917,3]
[349301651,1737107444148,-500.0,0.00021917,3]
[349301653,1737107444157,-500.0,0.00021917,3]
[349301656,1737107444167,-500.0,0.00021917,3]
[349301659,1737107444178,-500.0,0.00021917,3]
[349301662,1737107444187,-500.0,0.00021917,3]
[349301664,1737107444197,-500.0,0.00021917,3]
[349301665,1737107444206,-500.0,0.00021917,3]
[349301667,1737107444215,-500.0,0.00021917,3]
[349301669,1737107444225,-500.0,0.00021917,3]
[349301671,1737107444235,-500.0,0.00021917,3]
[349301673,1737107444244,-500.0,0.00021917,3]
[349301675,1737107444253,-573.54,0.00021917,3]
[349301677,1737107444262,-500.0,0.00021917,3]
[349301679,1737107444272,-500.0,0.00021917,3]
[349301680,1737107444281,-152.13,0.00021917,3]
[349301682,1737107444291,-500.0,0.00021917,3]
[349301684,1737107444301,-620.8,0.00021917,3]
[349301686,1737107444311,-500.0,0.00021917,3]
[349301688,1737107444320,-500.0,0.00021917,3]
[349301690,1737107444329,-500.0,0.00021917,3]
[349301692,1737107444338,-595.52,0.00021917,3]
[349301694,1737107444347,-500.0,0.00021917,3]
[349301696,1737107444356,-601.76,0.00021917,3]
[349301697,1737107444365,-528.01,0.00021917,3]
[349301699,1737107444375,-500.0,0.00021917,3]
[349301701,1737107444384,-500.0,0.00021917,3]
[349301703,1737107444394,-500.0,0.00021917,2]
[349301705,1737107444404,-500.0,0.00021917,3]
[349301707,1737107444413,-500.0,0.00021917,3]
[349301709,1737107444423,-500.0,0.00021917,3]
[349301711,1737107444432,-500.0,0.00021917,3]
[349301713,1737107444443,-500.0,0.00021917,3]
[349301715,1737107444452,-500.0,0.00021917,3]
[349301717,1737107444462,-500.0,0.00021917,3]
[349301719,1737107444472,-501.43054228,0.00021917,3]
[349301721,1737107444482,-500.0,0.00021917,3]
[349301723,1737107444492,-500.0,0.00021917,3]
[349301725,1737107444501,-500.0,0.00021917,3]
[349301727,1737107444511,-500.79257966,0.00021917,3]
[349301729,1737107444521,-500.0,0.00021917,3]
[349301731,1737107444530,-500.0,0.00021917,3]
[349301733,1737107444540,-501.93298872,0.00021917,3]
[349301735,1737107444550,-500.96004803,0.00021917,3]
[349301737,1737107444559,-500.0,0.00021917,3]
[349301739,1737107444568,-500.0,0.00021917,3]
[349301741,1737107444578,-500.0,0.00021917,3]
[349301743,1737107444587,-500.0,0.00021917,3]
[349301745,1737107444597,-150.78022881,0.00021917,3]
[349301747,1737107444606,-500.0,0.00021917,3]
[349301749,1737107444614,-503.82337064,0.00021917,3]
[349301751,1737107444623,-500.0,0.00021917,3]
[349301753,1737107444631,-250.101636,0.00021917,2]
[349301755,1737107444638,-500.0,0.00021917,3]
[349301756,1737107444648,-500.0,0.00021917,3]
[349301757,1737107444657,-500.0,0.00021917,3]
[349301758,1737107444666,-501.67582649,0.00021917,3]
[349301759,1737107444675,-501.09404817,0.00021917,3]
[349301760,1737107444685,-537.63,0.00021917,3]
[349301761,1737107444694,-500.0,0.00021917,3]
[349301762,1737107444703,-500.0,0.00021917,3]
[349301763,1737107444712,-500.0,0.00021917,3]
[349301764,1737107444721,-570.10408537,0.00021917,3]
[349301765,1737107444730,-393.0,0.00021917,3]
[349301766,1737107444740,-500.0,0.00021917,3]
[349301767,1737107444749,-500.0,0.00021917,3]
[349301768,1737107444762,-640.09,0.00021917,3]
[349301769,1737107444771,-500.0,0.00021917,3]
[349301770,1737107444780,-511.64698148,0.00021917,3]
[349301771,1737107444789,-500.72735406,0.00021917,3]
[349301772,1737107444798,-500.0,0.00021917,3]
[349301773,1737107444807,-491.63399887,0.00021917,3]
[349301774,1737107444816,-1962.95,0.00021917,3]
[349301775,1737107444825,-500.0,0.00021917,3]
[349301776,1737107444836,-500.0,0.00021917,3]
[349301778,1737107444845,-500.0,0.00021917,3]
[349301779,1737107444855,-3281.86,0.00021917,3]
[349301781,1737107444864,-500.0,0.00021917,3]
[349301783,1737107444874,-509.26306371,0.00021917,3]
[349301785,1737107444883,-642.69,0.00021917,3]
[349301787,1737107444892,-500.0,0.00021917,3]
[349301789,1737107444901,-511.43882886,0.00021917,3]
[349301791,1737107444911,-500.0,0.00021917,3]
[349301793,1737107444920,-200.0,0.00021917,3]
[349301795,1737107444930,-500.0,0.00021917,3]
[349301797,1737107444939,-500.0,0.00021917,3]
[349301799,1737107444949,-500.0,0.00021917,3]
[349301801,1737107444959,-600.90752488,0.00021917,3]
[349301803,1737107444968,-500.0,0.00021917,3]
[349301805,1737107444978,-500.0,0.00021917,3]
[349301807,1737107444987,-500.0,0.00021917,3]
[349301809,1737107444997,-500.0,0.00021917,3]
[349301811,1737107445006,-500.0,0.00021917,3]
[349301813,1737107445015,-500.0,0.00021917,3]
[349301815,1737107445025,-500.0,0.00021917,3]
[349301817,1737107445034,-500.0,0.00021917,3]
[349301819,1737107445044,-510.40892264,0.00021917,3]
[349301821,1737107445054,-500.0,0.00021917,3]